Cogmind - Beta 14 @@@ ROGUE MODE // 2024.09.06 @ 02:12:11 Player: ducanus Result: Destroyed by Y-45 Defender with Heavy Assault Rifle Performance ------------- Evolutions (1) 500 Regions Visited (3) 600 Robots Destroyed (18) 90 Value Destroyed (574) 574 Prototype IDs (0) 0 Alien Tech Used (0) 0 Bonus (0) 0 TOTAL SCORE: 1764 Bonus ------- None Cogmind --------- Core Integrity 0/400 Matter 290/300 Energy 455/475 System Corruption 0% Temperature Cool (84) Movement Rolling (95) Ox1 Location -9/Materials Parts ------- > --- POWER (1) -------- Deuterium Engine > --- PROPULSION (3) --- Wheel > --- UTILITY (3) ------ Large Battery > --- WEAPON (2) ------- (None) > --- INVENTORY (5) ---- Deuterium Engine Peak State ------------ > --- POWER ------------ Deuterium Engine > --- PROPULSION ------- Aluminum Leg Aluminum Leg Aluminum Leg > --- UTILITY ---------- Small Storage Unit Large Battery > --- WEAPON ----------- Medium Laser Autogun > --- INVENTORY -------- Deuterium Engine Deuterium Engine Light Treads Light Treads Wheel Small Laser Small Laser Mining Laser [Rating: 12] Favorites ----------- Power Ion Engine Engine Ion Engine Propulsion Aluminum Leg Treads Light Treads Leg Aluminum Leg Hover Unit Hover Unit Utility Small Storage Unit Device Seismic Detector Storage Small Storage Unit Weapon Medium Laser Energy Gun Medium Laser Energy Cannon Beam Cannon Ballistic Gun Autogun Special Weapon Mining Laser Build | -11 -10 -10 -9 ------- Run | Yrd Mat Min Mat Slots Evolved 2 | . . . 2 Power . | . . . . Propulsion 1 | . . . 1 Utility 1 | . . . 1 Weapon . | . . . . Parts Attached 34 | 7 11 2 14 Power 5 | 1 2 . 2 Engine 5 | 1 2 . 2 Core . | . . . . Reactor . | . . . . Propulsion 14 | 2 5 1 6 Treads 2 | . . . 2 Leg 8 | 2 2 1 3 Wheel 1 | . . . 1 Hover 3 | . 3 . . Flight . | . . . . Utility 4 | 2 1 . 1 Device 2 | 1 . . 1 Storage 2 | 1 1 . . Processor . | . . . . Hackware . | . . . . Protection . | . . . . Artifact . | . . . . Weapon 11 | 2 3 1 5 Energy Gun 7 | 2 2 . 3 Energy Cannon 1 | . 1 . . Ballistic Gun 1 | . . . 1 Ballistic Cannon . | . . . . Launcher . | . . . . Special Weapon 2 | . . 1 1 Impact Weapon . | . . . . Slashing Weapon . | . . . . Piercing Weapon . | . . . . Special Melee Weapon . | . . . . Unidentified Prototypes . | . . . . Parts Lost 21 | . 5 . 16 Power 1 | . . . 1 Propulsion 9 | . 2 . 7 Utility 3 | . 1 . 2 Weapon 8 | . 2 . 6 Highest Loss Streak 15 | . 5 . 15 To Critical Strikes . | . . . . Average Slot Usage (%) 95 | . 94 100 79 Engine 13 | . 13 14 10 Leg 20 | . 9 28 25 Hover 6 | . 16 . . Device 4 | . 9 . 4 Storage 22 | . 15 28 20 Energy Gun 19 | . 18 23 6 Energy Cannon 3 | . 8 . . Special Weapon 2 | . . 4 3 Peak Build Rating 12 | 7 7 7 12 Average Rating 7 | 5 6 6 10 On Entrance 5 | . 7 7 7 Naked Turns . | . . . . Heaviest Build 22 | 12 16 16 22 Greatest Support 40 | 20 20 20 40 Greatest Overweight (x) 4 | 3 4 . 1 Average Overweight (x) . | . . . . Largest Inventory Capacity 8 | 8 8 8 8 Average Capacity 7 | 7 8 8 7 Most Carried 8 | 5 8 8 8 Average Carried 7 | 4 7 7 6 Final Capacity 8 | 8 8 8 5 Final Carried 8 | 5 8 8 1 Class Distribution -------------------- 100% | Mutant Dominant Class ---------------- Mutant | -10/Materials Mutant | -10/Mines Mutant | -9/Materials Resources | -11 -10 -10 -9 ----------- Run | Yrd Mat Min Mat Matter Collected 488 | 270 90 30 98 Remotely . | . . . . Salvage Created 675 | 125 297 91 162 Parts 41 | 7 19 4 11 Haulers Intercepted . | . . . . Recyclers Shooed . | . . . . Parts Field Recycled . | . . . . Retrieved Matter . | . . . . Parts Self-Destructed . | . . . . Prevented . | . . . . Kills | -11 -10 -10 -9 ------- Run | Yrd Mat Min Mat Combat Hostiles Destroyed 14 | . 7 2 5 Melee 2 | . . . 2 Guns 10 | . 5 2 3 Cannons 2 | . 2 . . Classes Destroyed 4 | 2 2 . . Tunneler 2 | 2 . . . Recycler 1 | 1 . . . Watcher 1 | . 1 . . Grunt 14 | . 7 2 5 Best Kill Streak 3 | 3 2 2 3 Combat Bots Only 3 | . 2 2 3 Max Kills in Single Turn 1 | 1 1 1 1 Gunslinging . | . . . . Exploded . | . . . . Melee 1 | . . . 1 Uniques/NPCs Destroyed . | . . . . Combat | -11 -10 -10 -9 -------- Run | Yrd Mat Min Mat Hostile Shots Fired 241 | . 49 23 169 Missed 58 | . 9 4 45 Damage Taken 2521 | . 504 258 1759 Core 564 | . 84 71 409 Absorbed by Shields . | . . . . Core Remaining (%) 69 | 100 . 38 . Volleys Fired 63 | 6 27 9 21 Largest 2 | 2 2 2 2 Hottest 100 | 80 100 90 100 Shots Fired 105 | 12 51 18 24 Gun 92 | 12 39 18 23 Cannon 12 | . 12 . . Launcher . | . . . . Special 1 | . . . 1 Kinetic 12 | . . . 12 Thermal 77 | 6 41 18 12 Explosive . | . . . . Electromagnetic 16 | 6 10 . . Robot Hit Streak 17 | 4 16 17 4 Robot Miss Streak 4 | 1 2 4 2 Penetration Max . | . . . . Secondary Targets 1 | . . 1 . Max Gunslinging Chain 1 | . . 1 . Shots Hit Robots 74 | 7 39 11 17 Core Hits 38 | 4 16 5 13 Critical Kills . | . . . . Critical Parts Destroyed . | . . . . Critical Strikes 2 | . 1 . 1 Burn 2 | . 1 . 1 Melee Attacks . | . . . . Impact . | . . . . Slashing . | . . . . Piercing . | . . . . Sneak Attacks . | . . . . Combat Hostiles . | . . . . Follow-up Attacks . | . . . . Damage Inflicted 1041 | 84 536 130 291 Guns 875 | 84 431 130 230 Cannons 105 | . 105 . . Explosions . | . . . . Melee . | . . . . Ramming 37 | . . . 37 Kinetic 120 | . . . 120 Thermal 711 | 31 416 130 134 Explosive . | . . . . Electromagnetic 173 | 53 120 . . Impact . | . . . . Slashing . | . . . . Piercing . | . . . . Highest Corruption . | . . . . Average Corruption . | . . . . Corruption Purged . | . . . . Corruption Blocked . | . . . . Overload Shots . | . . . . Overflow Damage . | . . . . Projectiles . | . . . . Explosions . | . . . . Melee . | . . . . Knockbacks . | . . . . Impact . | . . . . Kinetic . | . . . . Secondary . | . . . . Self-Inflicted Damage . | . . . . Shots . | . . . . Rammed 19 | . . . 19 Targets Rammed 23 | . . . 23 Kicked 3 | . . . 3 Crushed 1 | . . . 1 Highest Temperature 407 | 54 317 407 48 Average Temperature 116 | 21 114 208 13 Received Heat Transfer 1413 | . 276 171 966 Effects 1 | . . 1 . Shutdowns 1 | . . 1 . Siege Activations . | . . . . Robots Corrupted . | . . . . Combat Hostiles . | . . . . Parts Fried . | . . . . Impact Corruptions . | . . . . Robots Melted . | . . . . Combat Hostiles . | . . . . Parts Melted 3 | . 2 1 . Heat Transferred 1934 | 75 1114 347 398 Parts Sabotaged . | . . . . Parts Stolen . | . . . . Parts Stripped . | . . . . Power Chain Reactions . | . . . . Alert | -11 -10 -10 -9 ------- Run | Yrd Mat Min Mat Peak Influence 165 | 15 100 70 165 Initial 11 | . 9 5 11 Average 35 | 4 43 24 72 Maximum Alert Level . | . . . . Low Security (%) 100 | 100 100 100 100 Level 1 . | . . . . Level 2 . | . . . . Level 3 . | . . . . Level 4 . | . . . . Level 5 . | . . . . High Security . | . . . . Max Security . | . . . . Squads Dispatched 5 | . 3 . 2 Investigation 2 | . 1 . 1 Extermination . | . . . . Reinforcement 3 | . 2 . 1 Assault . | . . . . Garrison . | . . . . Intercept . | . . . . Searches Triggered . | . . . . Construction Impeded . | . . . . Haulers Reinforced . | . . . . Active Scanning Responses . | . . . . Cargo Convoy Interrupts . | . . . . Stealth | -11 -10 -10 -9 --------- Run | Yrd Mat Min Mat Distress Signals 2 | . . . 2 Communications Jammed . | . . . . Distress Signals . | . . . . Times Spotted 44 | . 15 5 24 Peak Tracking Total 13 | . 4 2 13 Tactical Retreats 4 | . . 1 3 Traps | -11 -10 -10 -9 ------- Run | Yrd Mat Min Mat Traps Triggered 1 | . 1 . . Indirectly . | . . . . Trap Hack Attempts . | . . . . Triggered . | . . . . Disarmed . | . . . . Reprogrammed . | . . . . Reused . | . . . . Traps Extracted . | . . . . Installed . | . . . . Triggered . | . . . . Machines | -11 -10 -10 -9 ---------- Run | Yrd Mat Min Mat Machines Disabled 1 | . 1 . . Max in Single Turn 1 | . 1 . . Machines Repaired . | . . . . Machines Dismantled . | . . . . Machines Sabotaged . | . . . . Overloaded Fab Kills . | . . . . Hacking | -11 -10 -10 -9 --------- Run | Yrd Mat Min Mat Machines Accessed 5 | . 3 . 2 Terminals 4 | . 2 . 2 Fabricators . | . . . . Repair Stations 1 | . 1 . . Recycling Units . | . . . . Scanalyzers . | . . . . Garrison Access . | . . . . Total Hacks 13 | . 8 . 5 Successful 7 | . 4 . 3 Failed 6 | . 4 . 2 Catastrophic . | . . . . Database Lockouts . | . . . . Manual 11 | . 6 . 5 Terminals 11 | . 6 . 5 Fabricators . | . . . . Repair Stations 2 | . 2 . . Recycling Units . | . . . . Scanalyzers . | . . . . Garrison Access . | . . . . Terminal Hacks 3 | . 2 . 1 Terminal Index 2 | . 1 . 1 Zone Layout 1 | . 1 . . Fabricator Hacks . | . . . . Repair Station Hacks . | . . . . Recycling Unit Hacks . | . . . . Scanalyzer . | . . . . Garrison Access Hacks . | . . . . Unauthorized Hacks 4 | . 2 . 2 Terminals 4 | . 2 . 2 Botnet 4 | . 2 . 2 Fabricators . | . . . . Repair Stations . | . . . . Recycling Units . | . . . . Scanalyzers . | . . . . Garrison Access . | . . . . Data Cores Recovered . | . . . . Used . | . . . . Hacking Detections 3 | . 1 . 2 Full Trace Events 2 | . 1 . 1 Feedback Events . | . . . . Feedback Blocked . | . . . . Robot Schematics Acquired . | . . . . Robots Built . | . . . . Authchips . | . . . . Time . | . . . . Total Robot Build Rating . | . . . . Part Schematics Acquired . | . . . . Parts Built . | . . . . Authchips . | . . . . Time . | . . . . Total Part Build Rating . | . . . . Parts Repaired . | . . . . Time . | . . . . Parts Recycled . | . . . . Recycled Matter . | . . . . Retrieved Matter . | . . . . Retrieved Components . | . . . . Parts Scanalyzed . | . . . . Part Schematics Acquired . | . . . . Parts Damaged . | . . . . Bothacking | -11 -10 -10 -9 ------------ Run | Yrd Mat Min Mat Used RIF Installer . | . . . . Robots Hacked . | . . . . Non-combat . | . . . . Combat . | . . . . Robot Hacks Applied . | . . . . Relay Couplers Released . | . . . . Fabnet Peak Effective % . | . . . . Robots Rewired . | . . . . Allies Hacked . | . . . . Hacks Repelled . | . . . . Allies | -11 -10 -10 -9 -------- Run | Yrd Mat Min Mat Total Allies . | . . . . Largest Group . | . . . . Highest-Rated Group . | . . . . Highest-Rated Ally . | . . . . Total Orders . | . . . . Ally Attacks . | . . . . Total Damage . | . . . . Kills . | . . . . Allies Corrupted . | . . . . Allies Melted . | . . . . Intel | -11 -10 -10 -9 ------- Run | Yrd Mat Min Mat Robot Analysis Total . | . . . . Derelict Logs Recovered 1 | . . 1 . Drone Launches . | . . . . Drone Recoveries . | . . . . Exploration | -11 -10 -10 -9 ------------- Run | Yrd Mat Min Mat Turns Passed 2403 | 110 920 1117 256 Spaces Moved 1382 | 63 444 755 120 Core 18 | 17 1 . . Treads 4 | . . . 4 Legs 1141 | 46 224 755 116 Wheels . | . . . . Hover 219 | . 219 . . Flight . | . . . . Fastest Speed 50 | 50 116 120 120 Average Speed 121 | 121 121 120 127 Slowest Speed 250 | 200 250 120 190 Overloaded Moves . | . . . . Propulsion Burnouts . | . . . . Robots Hopped . | . . . . Cave-ins Triggered . | . . . . Exploration Rate (%) 45 | 4 60 101 15 Regions Visited 3 Branch Regions 1 Pre-discovered Areas 1 | . . 1 . Known Exits Taken . | . . . . Unknown Exits Taken 3 | 1 1 1 . Scrap Searched 1 | . . 1 . Spaces Dug . | . . . . Terrain Destroyed . | . . . . Melee . | . . . . Projectile . | . . . . AOE . | . . . . Terrain Rammed . | . . . . Walls Destroyed . | . . . . Machines Disabled . | . . . . Actions | -11 -10 -10 -9 --------- Run | Yrd Mat Min Mat Total 1986 | 80 773 948 185 Wait 465 | . 283 181 1 Move 1379 | 62 443 754 120 Hop . | . . . . Pick Up 11 | 5 2 1 3 Fast Attach 19 | 7 8 . 4 Attach 11 | . 2 1 8 Detach 4 | . 4 . . Swap 4 | . 1 1 2 Drop 7 | . 3 1 3 Fire 63 | 6 27 9 21 Melee . | . . . . Ram . | . . . . Kick 3 | . . . 3 Crush 20 | . . . 20 Escape Stasis . | . . . . Rewire . | . . . . Trap . | . . . . Miscellaneous . | . . . . Route ------- -11/Scrapyard -10/Materials (discovered 3 exits: *Mat x2 / [*Min]) -10/Mines (discovered 3 exits: *Mat x2 / [*Sub]) -9/Materials History --------- Turn | Location | Event 35 | -11/Scrapyard | Discovered new exit (range 16) 111 | -11/Scrapyard | Entered Materials 311 | -10/Materials | Build established: Mutant 566 | -10/Materials | Discovered new exit (range 12) 753 | -10/Materials | Lost 5 parts (2n1u2w) 813 | -10/Materials | Discovered new exit (range 15) 897 | -10/Materials | Discovered new exit (range 15) 1031 | -10/Materials | Entered Mines 1054 | -10/Mines | Core integrity fell below 50% 1093 | -10/Mines | Learned 2 Materials zone layouts 1184 | -10/Mines | Learned location of Storage (-9) 1332 | -10/Mines | Discovered new exit (range 12) 2020 | -10/Mines | Discovered new exit (range 11) 2045 | -10/Mines | Discovered new exit (range 10) 2148 | -10/Mines | Entered Materials 2148 | -9/Materials | Evolved 2 slots: Propulsion x1, Utility x1 2340 | -9/Materials | Core integrity fell below 50% 2402 | -9/Materials | Core integrity fell below 20% 2404 | -9/Materials | Destroyed by Y-45 Defender with Heavy Assault Rifle Last Messages --------------- 02363_ R-06 Scavenger collects Heat Sink. 02364_ Acquired 33 matter. 02364_ Slammed into G-47 Trooper. 02367_ Crushed G-47 Trooper. 02367_ G-47 Trooper destroyed. 02369_ Slammed into G-34 Mercenary. 02371_ G-34 Mercenary destroyed. 02371_ Critical hit (Burn: +37). 02374_ Acquired Sml. Laser. 02378_ Slammed into Y-45 Defender. 02391_ Lgt. Treads destroyed. 02393_ Slammed into G-47 Trooper. 02394_ Sml. Laser destroyed. 02394_ Slammed into G-47 Trooper. 02397_ Aluminum Leg destroyed. 02398_ Slammed into G-47 Trooper. 02398_ Lgt. Treads destroyed. 02400_ Acquired 6 matter. 02401_ Mining Laser destroyed. 02404_ Critical hit (Burn: +37). Map ----- +----------------------------------------------------+ | ######### ########???????# ???????????????? | | #???????# ???????????????? | | #???????# ???????????????? | | #???????# ???????????????? | | ##########+##### #???????# ???????????????? | | ?????# # #?????????????????????????????? | | ?????# """""" #% ##############/##?????????????? | | ?????# """""" # ????????????? | | ?????# """""" # ????????????? | | ?????# """""" # ????????????? | | ?????# """"" # ##############+##?????????????? | | ?????# #% #?? ??????????????????????? | | ?????# #= #? """ ??????????????????????? | | ????###+######## #? """ #?????????????????????? | | ##### #????# # """ #?????????????????????? | | #????# # #?????????????????????? | | T #????# / """ #?????????????????????? | | #????# "# """ #?????????????????????? | | ##### #????##"%# """ #?????????????????????? | | ????##### #?????# "#? #?????????????????????? | | ????????? #?????# #? #?????????????????????? | | ????????? #?????# #?? #?????????????????????? | | ????????? #?????# #??######?????????????????????? | | ????????# ####### ##?#####??????????????????????? | | ???????# g### =g#??????????????????????? | | ???????+ %ug m@#??????????????????????? | | ???????# #Y%!#??????????????????????? | | ???????## a ##%##??????????????????????? | | ????????# ##Y##### #??????????????? | | ????????# ##%% #??????????????? | | ????????# ######## ######## #??????????????? | | ????????#????????# #??????????????????????????? | | ?????????????????# #??????????????????????????? | | ?????????????????# #??????????????????????????? | | ?????????????????# #??????????????????????????? | | ????????????????? #??????????????????????????? | | ????????????????? #??????????????????????????? | | ???????????????? #??????????????????????????? | | ???????????????? #??????????????????????????? | | ????????????????######???????????????????????????? | | ?????????????????????????????????????????????????? | | ?????????????????????????????????????????????????? | | ?????????????????????????????????????????????????? | | ?????????????????????????????????????????????????? | | ?????????????????????????????????????????????????? | | ?????????????????????????????????????????????????? | | ?????????????????????????????????????????????????? | | ?????????????????????????????????????????????????? | | ?????????????????????????????????????????????????? | | ?????????????????????????????????????????????????? | +----------------------------------------------------+ Best States ------------- Heat Dissipation 38 Energy Generation 14 Energy Capacity 475 Matter Stores 300 Matter Capacity 300 Sight Range 16 Terrain Scan Density 10 Evasion (%) 55 Recoil Reduction 2 Item Schematics ----------------- None Robot Schematics ------------------ None Fabricated ------------ Nothing Alien Tech Used ----------------- None Achievements -------------- None Challenges ------------ None Game ------ Seed HugeGravmagTearclaws Manual? 0 Play Time 00:25:38 Cumulative 21.6 hours Start 2024.09.06 @ 01:34:38 End 2024.09.06 @ 02:12:11 Sessions 1 Manual Loads 0 Difficulty Rogue Special Mode None Game No. 12 Rogue 12 Adventurer 0 Explorer 0 Win Type - Total 1 Types 1/0/0/0/0/0/0/0/0 Lore% 15 Gallery% 32 Achievement% 28 Wizard Run 0 Options --------- Layout 1 ASCII 0 Keyboard 1 Movement Numpad Keybinds 0 Fullscreen 1 Font 24/Smallcaps Map View 50x35 Zoom Use 0% Tactical HUD 1 Map Filters NONE Filters NONE Steam 1 RUN: e0534561-7662-4261-9856-ec304fd43479